bitfinex/quotes_SOLUSD_20260310
["timestamp","ask_amount","ask_price","bid_price","bid_amount"]
[1773136092910,2.91537154,87.199,87.177,11.47084327]
[1773136095610,4.04534317,87.23,87.191,2.9972263]
[1773136097294,4.04534317,87.22,87.191,2.9972263]
[1773136097499,4.04534317,87.22,87.193,2.9972263]
[1773136099399,2.91537154,87.221,87.195,2.9972263]
[1773136099600,4.04534317,87.22,87.195,2.9972263]
[1773136100107,11.46407731,87.229,87.2,4.04534317]
[1773136101235,2.91537154,87.232,87.2,4.04534317]
[1773136101606,4.04534317,87.23,87.201,11.46775839]
[1773136102119,4.04534317,87.23,87.202,2.9972263]
[1773136102419,2.91537154,87.229,87.202,2.9972263]
[1773136102923,4.04534317,87.24,87.211,2.9972263]
[1773136103307,6.96071471,87.24,87.211,2.9972263]
[1773136103617,2.91537154,87.239,87.212,11.46631197]
[1773136103827,2.91537154,87.239,87.212,14.46353827]
[1773136104027,2.91537154,87.238,87.212,14.46353827]
[1773136104507,2.91537154,87.238,87.213,2.9972263]
[1773136105629,2.91537154,87.238,87.214,11.46604902]
[1773136105809,2.91537154,87.238,87.215,2.9972263]
[1773136107034,2.91537154,87.238,87.216,11.46578609]
[1773136109029,2.91537154,87.238,87.216,2.9972263]
[1773136109821,11.46217097,87.244,87.216,2.9972263]
[1773136110234,2.91537154,87.253,87.221,2.9972263]
[1773136110505,4.04534317,87.25,87.221,2.9972263]
[1773136110710,2.91537154,87.239,87.202,2.9972263]
[1773136111326,2.91537154,87.249,87.211,2.9972263]
[1773136111527,6.96071471,87.27,87.24,4.04534317]
[1773136111735,6.96071471,87.27,87.241,2.9972263]
[1773136112612,2.91537154,87.269,87.241,2.9972263]
[1773136112813,6.96071471,87.26,87.221,2.9972263]
[1773136113040,6.96071471,87.26,87.231,2.9972263]
[1773136114337,18.42076236,87.26,87.233,3.01873954]
[1773136114541,3.09305491,87.264,87.233,3.01873954]
[1773136116022,3.09305491,87.264,87.234,11.46342022]
[1773136116221,3.09305491,87.264,87.235,3.01873954]
[1773136116523,15.50403501,87.27,87.235,3.01873954]
[1773136116724,18.59708992,87.27,87.235,3.01873954]
[1773136116927,3.09305491,87.269,87.235,3.01873954]
[1773136117539,3.09305491,87.259,87.235,3.01873954]
[1773136118247,3.09305491,87.259,87.237,3.01873954]
[1773136119124,3.09305491,87.269,87.241,3.01873954]
[1773136119544,3.09305491,87.279,87.241,3.01873954]
[1773136119744,3.09305491,87.279,87.251,3.01873954]
[1773136121732,3.09305491,87.277,87.251,3.01873954]
[1773136121930,3.09305491,87.277,87.252,11.46105533]
[1773136122844,3.09305491,87.277,87.252,14.47979487]
[1773136123852,3.09305491,87.269,87.246,3.01873954]
[1773136126255,3.09305491,87.279,87.248,3.01873954]
[1773136127060,3.09305491,87.278,87.248,3.01873954]
[1773136127440,4.04534317,87.27,87.248,3.01873954]
[1773136128742,3.09305491,87.269,87.249,11.46144941]
[1773136129655,3.09305491,87.269,87.249,14.48018895]
[1773136130050,3.09305491,87.269,87.249,11.46144941]
[1773136130252,3.09305491,87.269,87.25,3.01873954]
[1773136131853,28.64121955,87.287,87.235,3.02765116]
[1773136132159,2.89338722,87.266,87.237,3.02765116]
[1773136132360,2.89338722,87.266,87.239,3.02765116]
[1773136132865,4.04534317,87.27,87.239,3.02765116]
[1773136133860,2.89338722,87.269,87.241,3.02765116]
[1773136134363,2.89338722,87.259,87.239,14.49041437]
[1773136134661,2.89338722,87.265,87.24,3.02765116]
[1773136135566,4.04534317,87.27,87.25,3.02765116]
[1773136135862,4.04534317,87.27,87.251,14.48883785]
[1773136136063,2.89338722,87.276,87.252,3.02765116]
[1773136137645,2.89338722,87.274,87.252,3.02765116]
[1773136137851,2.89338722,87.274,87.254,3.02765116]
[1773136138051,14.35095433,87.279,87.254,3.02765116]
[1773136138661,2.89338722,87.278,87.254,3.02765116]
[1773136138864,11.45777237,87.277,87.254,3.02765116]
[1773136139870,2.89338722,87.278,87.256,3.02765116]
[1773136140249,4.04534317,87.28,87.256,3.02765116]
[1773136140968,11.45750982,87.279,87.257,14.48804975]
[1773136141153,2.89338722,87.278,87.257,14.48804975]
[1773136141556,2.89338722,87.269,87.243,3.02765116]
[1773136141762,4.04534317,87.27,87.244,3.02765116]
[1773136142361,4.04534317,87.26,87.243,3.02765116]
[1773136142761,2.89338722,87.265,87.243,3.02765116]
[1773136143069,2.89338722,87.259,87.235,3.02765116]
[1773136143268,2.89338722,87.259,87.231,62.8]
[1773136143269,2.89338722,87.249,87.231,62.8]
[1773136143485,2.89338722,87.249,87.229,14.49167989]
[1773136143662,2.80724894,87.259,87.23,2.84004786]
[1773136144865,2.80724894,87.258,87.232,2.84004786]
[1773136145065,4.03858123,87.25,87.232,2.84004786]
[1773136147769,4.03858123,87.25,87.234,2.84004786]
[1773136150685,4.03858123,87.25,87.235,11.46328881]
[1773136151883,2.80724894,87.253,87.235,11.46328881]
[1773136152382,2.80724894,87.249,87.224,11.46473447]
[1773136152586,2.80724894,87.249,87.226,2.84004786]
[1773136154373,4.03858123,87.28,87.225,62.8]
[1773136154374,6.84583017,87.24,87.225,62.8]
[1773136154576,14.26882972,87.248,87.226,2.84004786]
[1773136154772,4.03858123,87.28,87.227,2.84004786]
[1773136154773,2.80724894,87.255,87.227,2.84004786]
[1773136154986,4.03858123,87.25,87.229,2.84004786]
[1773136155175,2.80724894,87.249,87.229,2.84004786]
[1773136156081,2.80724894,87.239,87.228,62.8]
[1773136157385,2.80724894,87.246,87.229,2.84004786]
[1773136159269,2.80724894,87.246,87.228,62.8]
[1773136159669,2.80724894,87.246,87.226,11.4644716]
[1773136160376,4.03858123,87.24,87.226,11.4644716]
[1773136161581,2.80724894,87.239,87.212,2.84004786]
[1773136161781,4.03858123,87.23,87.212,2.84004786]
[1773136161976,4.03858123,87.23,87.212,65.64004786]
[1773136162182,4.03858123,87.23,87.213,11.4661805]
[1773136162396,4.03858123,87.23,87.212,65.64004786]
[1773136162695,4.03858123,87.23,87.212,77.10631194]
[1773136162870,2.80724894,87.231,87.213,2.84004786]
[1773136163075,2.80724894,87.239,87.213,2.84004786]
[1773136163575,2.80724894,87.239,87.215,2.84004786]
[1773136164396,2.80724894,87.24,87.215,2.84004786]
[1773136164574,6.84583017,87.24,87.215,2.84004786]
[1773136165696,6.84583017,87.24,87.216,11.46578609]
[1773136165877,6.84583017,87.24,87.217,2.84004786]
[1773136166078,11.46276321,87.239,87.217,2.84004786]
[1773136166278,4.03858123,87.24,87.217,2.84004786]
[1773136167398,2.80724894,87.279,87.218,2.84004786]
[1773136167595,2.80724894,87.259,87.221,2.84004786]
[1773136167794,2.80724894,87.259,87.23,4.03858123]
[1773136168094,2.80724894,87.263,87.231,2.84004786]
[1773136168297,4.03858123,87.26,87.231,2.84004786]
[1773136168678,6.84583017,87.26,87.231,2.84004786]
[1773136170403,2.80724894,87.259,87.233,2.84004786]
[1773136171803,2.80724894,87.258,87.233,2.84004786]
[1773136172608,2.80724894,87.258,87.234,11.46342022]
[1773136172783,2.80724894,87.258,87.235,2.84004786]
[1773136176410,2.97123417,87.256,87.235,2.84004786]
[1773136176604,2.97123417,87.256,87.236,11.46315741]
[1773136177306,2.97123417,87.256,87.237,2.95735212]
[1773136177510,2.97123417,87.261,87.237,2.95735212]
[1773136177809,7.0098154,87.26,87.237,2.95735212]
[1773136177991,2.97123417,87.259,87.237,2.95735212]
[1773136178592,2.97123417,87.259,87.239,2.95735212]
[1773136179710,2.97123417,87.257,87.239,2.95735212]
[1773136180918,2.97123417,87.255,87.239,2.95735212]
[1773136181115,2.97123417,87.255,87.222,28.66234437]
[1773136181317,2.97123417,87.249,87.222,28.66234437]
[1773136182820,2.97123417,87.249,87.211,28.66610863]
[1773136183019,2.97123417,87.239,87.212,61.71877086]
[1773136183216,2.97123417,87.239,87.213,2.95735212]
[1773136185717,2.97330088,87.238,87.215,3.06388405]
[1773136188005,2.97330088,87.238,87.216,11.46578609]
[1773136188315,2.97330088,87.238,87.217,3.06388405]
[1773136188534,2.97330088,87.259,87.221,3.06388405]
[1773136188719,2.97330088,87.255,87.221,3.06388405]
[1773136189404,2.97330088,87.255,87.231,3.06388405]
[1773136190927,2.97330088,87.255,87.233,3.06388405]
[1773136191307,2.97330088,87.265,87.233,3.06388405]
[1773136192005,7.01188211,87.26,87.233,3.06388405]
[1773136192417,2.97330088,87.259,87.235,3.06388405]
[1773136192802,2.97330088,87.259,87.236,3.06388405]
[1773136193426,2.97330088,87.266,87.236,3.06388405]
[1773136195630,4.03858123,87.26,87.238,3.06388405]
[1773136196608,7.01188211,87.26,87.238,3.06388405]
[1773136196809,2.97330088,87.26,87.238,3.06388405]
[1773136197734,7.01188211,87.26,87.239,11.46276321]
[1773136197930,2.97330088,87.259,87.239,11.46276321]
[1773136198129,2.97330088,87.259,87.24,3.06388405]
[1773136198820,2.97330088,87.259,87.239,73.18153407]
[1773136199626,2.97330088,87.259,87.24,3.06388405]
[1773136199852,2.97330088,87.259,87.241,11.46250042]
[1773136200216,2.97330088,87.259,87.241,14.52638447]
[1773136200832,2.97330088,87.259,87.242,3.06388405]
[1773136201729,2.97330088,87.259,87.243,11.46223765]
[1773136201910,2.97330088,87.259,87.243,14.5261217]
[1773136202415,2.97330088,87.259,87.244,3.06388405]
[1773136203709,2.982396,87.264,87.245,11.46197489]
[1773136203910,4.23858123,87.32,87.245,11.46197489]
[1773136203911,2.982396,87.283,87.251,3.05613753]
[1773136204830,4.03858123,87.28,87.251,3.05613753]
[1773136205036,2.982396,87.269,87.251,3.05613753]
[1773136205328,2.982396,87.259,87.245,40.11691213]
[1773136205534,2.982396,87.259,87.241,11.4624451]
[1773136207747,11.46026725,87.258,87.237,3.05613753]
[1773136208048,2.982396,87.257,87.238,11.46289461]
[1773136208937,2.982396,87.257,87.238,14.51903214]
[1773136210144,2.982396,87.263,87.239,3.05613753]
[1773136210451,2.982396,87.279,87.251,3.05613753]
[1773136210640,2.982396,87.279,87.253,3.05613753]
[1773136210943,2.982396,87.291,87.253,3.05613753]
[1773136211124,2.982396,87.289,87.253,3.05613753]
[1773136211446,2.982396,87.289,87.261,3.05613753]
[1773136212144,2.982396,87.289,87.263,3.05613753]
[1773136213728,28.83701617,87.3,87.265,3.05613753]
[1773136213729,2.982396,87.299,87.265,3.05613753]
[1773136213929,2.982396,87.299,87.271,3.05613753]
[1773136215654,2.982396,87.279,87.256,11.46052993]
[1773136215830,2.982396,87.279,87.25,28.65301789]
[1773136215831,2.982396,87.279,87.25,40.11433594]
[1773136216027,4.03872475,87.27,87.25,40.11433594]
[1773136216433,2.982396,87.272,87.25,40.11433594]
[1773136216851,2.982396,87.272,87.25,11.46131805]
[1773136217053,2.982396,87.272,87.25,14.51745558]
[1773136217239,2.982396,87.272,87.251,3.05613753]
[1773136217437,4.03872475,87.28,87.251,3.05613753]
[1773136217652,15.69354256,87.3,87.261,3.05613753]
[1773136217956,4.03872475,87.29,87.263,3.05613753]
[1773136218157,4.03872475,87.28,87.252,11.46105533]
[1773136218340,4.03872475,87.28,87.252,14.51719286]
[1773136218652,4.03872475,87.28,87.253,3.05613753]
[1773136219549,2.982396,87.279,87.253,3.05613753]
[1773136219855,4.03872475,87.29,87.254,3.05613753]
[1773136220241,4.03872475,87.29,87.255,11.46066128]
[1773136220453,4.03872475,87.29,87.256,3.05613753]
[1773136221355,11.45619722,87.289,87.256,3.05613753]
[1773136221747,5.62943749,87.28,87.256,3.05613753]
[1773136222449,1.59018225,87.279,87.256,3.05613753]
[1773136222757,1.59018225,87.279,87.257,64.77490839]
[1773136222951,1.59018225,87.278,87.257,64.77490839]
[1773136223855,1.59018225,87.278,87.258,3.05613753]
[1773136224559,1.58909372,87.286,87.26,3.05613753]
[1773136225852,1.58909372,87.286,87.261,61.71877086]
[1773136226248,1.58909372,87.286,87.262,11.45974192]
[1773136226741,5.62679212,87.28,87.262,11.45974192]
[1773136227143,1.58756302,87.279,87.261,64.77490839]
[1773136227761,1.58756302,87.279,87.252,11.46096531]
[1773136229638,1.58657164,87.277,87.252,3.05613753]
[1773136231852,1.58657164,87.277,87.253,11.46092397]
[1773136232157,1.58657164,87.277,87.254,3.05613753]
[1773136232560,1.58512686,87.289,87.254,3.05613753]
[1773136233239,4.03872475,87.28,87.254,3.05613753]
[1773136233567,1.58465628,87.279,87.254,2.94104173]
[1773136234260,1.58419111,87.277,87.254,2.94104173]
[1773136234463,1.58419111,87.277,87.255,11.46066128]
[1773136234849,1.58419111,87.277,87.256,61.71877086]
[1773136236470,4.03872475,87.28,87.256,61.71877086]
[1773136236471,1.58282742,87.275,87.256,61.71877086]
[1773136237156,1.42793204,87.28,87.256,61.71877086]
[1773136237657,4.03872475,87.27,87.256,64.78792788]
[1773136237962,4.03872475,87.27,87.257,64.78792788]
[1773136238658,44.14422424,87.27,87.234,3.06915702]
[1773136238843,4.03872475,87.26,87.236,3.06915702]
[1773136239950,4.03872475,87.26,87.238,3.06915702]
[1773136242061,4.03872475,87.26,87.24,3.06915702]
[1773136243665,4.03872475,87.27,87.241,11.46250042]
[1773136243963,4.03872475,87.26,87.242,62.8]
[1773136244166,4.03872475,87.26,87.243,3.06915702]
[1773136246265,4.03872475,87.26,87.22,4.03872475]
[1773136246266,11.45632847,87.288,87.251,3.06915702]
[1773136246562,11.45632847,87.288,87.261,3.06915702]
[1773136247567,11.45632847,87.288,87.244,11.46210627]
[1773136247568,11.45632847,87.288,87.263,3.06915702]
[1773136248268,4.03872475,87.29,87.263,3.06915702]
[1773136248468,0.2,87.3,87.281,3.06915702]
[1773136249062,11.45294209,87.314,87.291,3.06915702]
[1773136249671,4.03872475,87.31,87.291,3.06915702]
[1773136249868,40.08303742,87.319,87.291,3.06915702]
[1773136250251,4.03872475,87.31,87.291,3.06915702]
[1773136250570,4.03872475,87.31,87.281,3.06915702]
[1773136253163,11.45320768,87.312,87.283,3.06915702]
[1773136253367,11.45249908,87.318,87.291,3.06915702]
[1773136253870,0.2,87.32,87.301,3.06915702]
[1773136254261,11.45226124,87.319,87.301,3.06915702]
[1773136255275,11.45226124,87.319,87.303,3.06915702]
[1773136256588,0.2,87.32,87.303,3.06915702]
[1773136257077,11.65213047,87.32,87.303,3.06915702]
[1773136260378,15.69085522,87.32,87.303,3.06915702]
[1773136261255,44.32118046,87.32,87.284,3.06915702]
[1773136261674,4.03872475,87.29,87.261,3.06915702]
[1773136262360,4.03872475,87.29,87.25,4.03872475]
[1773136262361,4.03872475,87.29,87.263,3.06915702]
[1773136262979,11.4539665,87.306,87.263,3.06915702]
[1773136263161,4.03872475,87.3,87.263,3.06915702]
[1773136265480,4.03872475,87.3,87.265,3.06915702]
[1773136265481,11.45488493,87.299,87.265,3.06915702]
[1773136267591,11.45488493,87.299,87.267,3.06915702]
[1773136267774,11.45488493,87.299,87.268,62.8]
[1773136267975,11.45488493,87.299,87.269,3.06915702]
[1773136270795,11.45488493,87.299,87.271,11.45856011]
[1773136270989,11.45488493,87.299,87.272,3.06915702]
[1773136273684,4.03457986,87.29,87.272,3.06915702]
[1773136273884,4.03457986,87.3,87.274,3.06915702]
[1773136275178,11.45226124,87.319,87.291,3.06915702]
[1773136275397,4.03457986,87.31,87.291,3.06915702]
[1773136275590,11.45488493,87.299,87.267,3.06915702]
[1773136275798,4.03457986,87.29,87.267,3.06915702]
[1773136276201,4.03457986,87.29,87.267,11.45898489]
[1773136276379,4.03457986,87.29,87.268,3.06915702]
[1773136277703,4.03457986,87.29,87.27,3.06915702]
[1773136278712,28.63098101,87.318,87.27,3.06915702]
[1773136278885,4.03457986,87.29,87.27,3.06915702]
[1773136279092,4.03457986,87.28,87.27,3.06915702]
[1773136279392,4.03457986,87.29,87.27,3.06915702]
[1773136280803,11.45619722,87.289,87.27,3.06915702]
[1773136283204,4.03457986,87.28,87.263,3.06915702]
[1773136283411,4.03457986,87.28,87.257,3.06915702]
[1773136285106,11.4566693,87.286,87.259,3.06915702]
[1773136285803,4.03457986,87.29,87.261,3.06915702]
[1773136287306,11.45493633,87.299,87.263,3.06915702]
[1773136288619,11.45226124,87.319,87.281,3.06915702]
[1773136288797,4.03457986,87.31,87.281,3.06915702]
[1773136290728,4.03457986,87.3,87.283,3.06915702]
[1773136291915,40.08291436,87.319,87.283,3.06915702]
[1773136292128,4.03457986,87.31,87.283,3.06915702]
[1773136292497,0.2,87.32,87.291,3.06915702]
[1773136292700,0.2,87.32,87.301,3.06915702]
[1773136293901,0.1,87.34,87.311,3.06915702]
[1773136294433,0.2,87.35,87.331,3.01915702]
[1773136294916,4.23457986,87.35,87.331,3.01915702]
[1773136295224,0.2,87.35,87.332,3.01915702]
[1773136296120,0.2,87.35,87.31,28.63343359]
[1773136296121,0.09233002,87.348,87.322,3.01915702]
[1773136296322,4.03457986,87.34,87.315,3.01915702]
[1773136298513,4.03457986,87.34,87.317,3.01915702]
[1773136298915,11.4492041,87.343,87.317,3.01915702]
[1773136298916,11.54052636,87.349,87.317,3.01915702]
[1773136299828,0.09213371,87.348,87.317,3.01915702]
[1773136300127,4.03457986,87.34,87.317,3.01915702]
[1773136300328,11.54038626,87.349,87.317,3.01915702]
[1773136300515,4.03457986,87.34,87.319,3.01915702]
[1773136300718,0.09205829,87.346,87.319,3.01915702]
[1773136300919,11.44885225,87.345,87.321,3.01915702]
[1773136303141,0.09205829,87.346,87.321,3.01915702]
[1773136303837,0.1,87.36,87.331,3.01915702]
[1773136304129,11.44701747,87.359,87.331,3.01915702]
[1773136305933,0.09169396,87.358,87.331,3.01915702]
[1773136306117,0.09169396,87.349,87.325,3.01915702]
[1773136306318,11.44701747,87.359,87.331,3.01915702]
[1773136307926,11.44701747,87.359,87.333,3.01915702]
[1773136308812,0.1,87.36,87.341,3.01915702]
[1773136310141,4.22592993,87.36,87.334,14.46932543]
[1773136310312,4.22592993,87.36,87.335,3.01915702]
[1773136310513,4.13457986,87.36,87.335,3.01915702]
[1773136311331,4.22579785,87.36,87.335,3.01915702]
[1773136311829,4.13457986,87.36,87.336,3.01915702]
[1773136312341,11.44701747,87.359,87.336,3.01915702]
[1773136313326,4.13457986,87.36,87.338,3.01915702]
[1773136313924,4.03457986,87.35,87.321,3.01915702]
[1773136314425,11.44779307,87.354,87.323,3.01915702]
[1773136315545,4.03457986,87.35,87.323,3.01915702]
[1773136316040,11.44779307,87.354,87.325,3.01915702]
[1773136316338,4.03457986,87.35,87.325,3.01915702]
[1773136316825,4.03457986,87.35,87.327,3.01915702]
[1773136317425,0.09083956,87.348,87.327,3.01915702]
[1773136317627,0.09083956,87.348,87.324,62.8]
[1773136317628,4.03457986,87.34,87.324,62.8]
[1773136317844,4.03457986,87.34,87.325,62.8]
[1773136319046,15.48412972,87.34,87.325,62.8]
[1773136319844,15.48412972,87.34,87.321,3.01915702]
[1773136319845,15.48412972,87.34,87.326,62.8]
[1773136320261,0.09065995,87.339,87.308,3.01915702]
[1773136320426,4.03457986,87.33,87.309,11.45357294]
[1773136320630,4.03457986,87.33,87.31,3.0644852]
[1773136321144,28.61951169,87.353,87.312,3.0644852]
[1773136321352,4.03457986,87.34,87.312,3.0644852]
[1773136321927,4.03457986,87.32,87.292,3.0644852]
[1773136322323,4.03457986,87.31,87.292,3.0644852]
[1773136322645,4.03457986,87.3,87.283,3.0644852]
[1773136323850,4.03457986,87.3,87.285,3.0644852]
[1773136324943,15.48937116,87.3,87.285,3.0644852]
[1773136327349,4.03457986,87.29,87.265,3.0644852]
[1773136327654,4.03595505,87.29,87.265,3.0644852]
[1773136328036,4.03595505,87.28,87.265,3.0644852]
[1773136332755,4.03595505,87.28,87.265,14.52375687]
[1773136332960,11.45631373,87.289,87.266,3.0644852]
[1773136333253,4.03595505,87.28,87.266,3.0644852]
[1773136333837,4.03595505,87.28,87.267,62.8]
[1773136334143,4.03595505,87.28,87.268,3.0644852]
[1773136336456,11.45750982,87.279,87.245,3.0644852]
[1773136336656,4.03595505,87.26,87.245,3.0644852]
[1773136337950,11.45619722,87.289,87.251,3.0644852]
[1773136338152,11.45619722,87.289,87.261,3.0644852]
[1773136339746,4.03595505,87.28,87.261,3.0644852]
[1773136341264,4.03595505,87.28,87.261,11.45980473]
[1773136341455,4.03595505,87.28,87.262,3.0644852]
[1773136343242,4.03595505,87.32,87.264,3.0644852]
[1773136343446,40.07832449,87.329,87.263,40.1086371]
[1773136343447,4.03595505,87.31,87.271,3.0644852]
[1773136344673,11.45357294,87.309,87.273,3.0644852]
[1773136348964,11.45357294,87.309,87.275,3.0644852]
[1773136349664,11.45357294,87.309,87.277,3.0644852]
[1773136350565,4.03595505,87.3,87.277,3.0644852]
[1773136350767,4.03595505,87.3,87.279,3.0644852]
[1773136350961,4.03595505,87.31,87.279,14.52196509]
[1773136351154,4.03595505,87.31,87.28,3.0644852]
[1773136353453,11.45357294,87.309,87.282,3.0644852]
[1773136353658,4.03595505,87.33,87.291,3.0644852]
[1773136353957,45.7757577,87.383,87.301,3.0644852]
[1773136353958,4.03595505,87.34,87.301,3.0644852]
[1773136354753,4.03595505,87.35,87.311,3.0644852]
[1773136354978,4.03595505,87.35,87.31,4.03595505]
[1773136354979,11.44832797,87.349,87.313,3.0644852]
[1773136355468,4.03595505,87.34,87.313,3.0644852]
[1773136357066,15.48558925,87.34,87.314,11.45291705]
[1773136357259,15.48558925,87.34,87.315,3.0644852]
[1773136359269,11.44897399,87.345,87.317,3.0644852]
[1773136359656,4.03595505,87.34,87.317,3.0644852]
[1773136360060,4.03595505,87.33,87.311,3.0644852]
[1773136360573,4.03595505,87.34,87.302,3.0644852]
[1773136361770,4.03595505,87.34,87.303,40.09026035]
[1773136361979,4.03595505,87.34,87.304,3.0644852]
[1773136363983,4.03595505,87.34,87.307,3.0644852]
[1773136365671,4.03595505,87.34,87.311,3.0644852]
[1773136366874,4.03595505,87.34,87.313,3.0644852]
[1773136367268,28.61847833,87.357,87.312,40.0861279]
[1773136367269,11.44741059,87.356,87.321,3.0644852]
[1773136368364,4.03595505,87.35,87.321,3.0644852]
[1773136369378,4.03595505,87.35,87.322,11.45186779]
[1773136369576,4.03595505,87.35,87.323,3.0644852]
[1773136370686,4.03595505,87.35,87.325,3.0644852]
[1773136370986,0.1,87.36,87.33,4.03595505]
[1773136371281,0.1,87.36,87.331,3.0644852]
[1773136371491,0.1,87.36,87.341,3.0644852]
[1773136372766,0.1,87.36,87.342,11.44924549]
[1773136373278,0.1,87.36,87.343,3.0644852]
[1773136375289,0.1,87.36,87.345,3.0644852]
[1773136377784,0.1,87.36,87.346,11.44872117]
[1773136377991,0.1,87.36,87.347,3.0644852]
[1773136378993,0.1,87.36,87.346,11.44872117]
[1773136378994,0.1,87.37,87.351,3.0644852]
[1773136379675,0.1,87.38,87.351,3.0644852]
[1773136379869,0.1,87.38,87.353,3.0644852]
[1773136380076,4.13595505,87.38,87.353,3.0644852]
[1773136380275,4.03595505,87.36,87.325,3.0644852]
[1773136380470,4.03595505,87.34,87.301,3.0644852]
[1773136380693,4.03595505,87.33,87.301,3.0644852]
[1773136381887,4.03595505,87.31,87.301,3.0644852]
[1773136382103,4.03595505,87.32,87.302,11.4544913]
[1773136382301,4.03595505,87.32,87.303,3.0644852]
[1773136382776,11.45154466,87.325,87.303,3.0644852]
[1773136383277,4.03595505,87.32,87.303,3.0644852]
[1773136385274,4.03595505,87.32,87.283,3.0644852]
[1773136385275,4.03595505,87.31,87.283,3.0644852]
[1773136385577,44.11847795,87.32,87.283,3.0644852]
[1773136386383,4.03595505,87.31,87.283,3.0644852]
[1773136387184,4.03595505,87.31,87.271,28.64633167]
[1773136387185,11.45357294,87.309,87.285,3.0644852]
[1773136389596,4.03365256,87.31,87.285,3.0644852]
[1773136390713,4.03365256,87.31,87.287,3.0644852]
[1773136391499,4.03365256,87.3,87.281,3.0644852]
[1773136392204,11.45488493,87.299,87.281,3.0644852]
[1773136394015,11.45488493,87.299,87.282,58.76542014]
[1773136394694,4.03365256,87.3,87.283,3.0644852]
[1773136395216,28.63255,87.314,87.283,3.0644852]
[1773136395402,4.03365256,87.31,87.283,3.0644852]
[1773136396812,15.487221,87.31,87.284,11.45685348]
[1773136397019,4.03365256,87.3,87.285,61.82990534]
[1773136398212,4.03365256,87.3,87.286,3.0644852]
[1773136398412,15.487221,87.31,87.288,3.0644852]
[1773136398924,4.03365256,87.31,87.288,3.0644852]
[1773136399109,11.45289889,87.315,87.288,3.0644852]
[1773136400023,4.03365256,87.31,87.291,3.0644852]
[1773136402545,11.45357294,87.309,87.289,58.76542014]
[1773136402715,11.45357294,87.309,87.29,3.0644852]
[1773136403123,11.45357294,87.309,87.291,58.76542014]
[1773136403329,11.45357294,87.309,87.291,61.82990534]
[1773136404139,11.45357294,87.309,87.292,3.0644852]
[1773136404645,11.45239639,87.318,87.293,3.0644852]
[1773136405332,4.03365256,87.35,87.311,3.0644852]
[1773136405532,4.03365256,87.35,87.321,3.0644852]
[1773136407424,40.06914789,87.349,87.321,3.0644852]
[1773136407628,4.03365256,87.33,87.311,3.0644852]
[1773136410938,2.79748321,87.319,87.293,11.45567227]
[1773136411124,4.03365256,87.31,87.293,11.45567227]
[1773136411324,2.79748321,87.319,87.293,11.45567227]
[1773136411926,2.79748321,87.319,87.281,40.10036548]
[1773136412523,4.03365256,87.31,87.281,40.10036548]
[1773136412924,2.79748321,87.317,87.282,3.02771777]
[1773136413631,11.4523924,87.318,87.284,3.05342214]
[1773136415147,14.39024646,87.318,87.286,3.05342214]
[1773136415438,4.03365256,87.31,87.286,3.05342214]
[1773136417748,4.03365256,87.31,87.288,3.05342214]
[1773136417749,11.45357294,87.309,87.288,3.05342214]
[1773136418054,2.93785406,87.308,87.289,58.76542014]
[1773136418345,11.45357294,87.309,87.29,3.05342214]
[1773136419949,10.95357294,87.309,87.29,3.05342214]
[1773136420244,4.03365256,87.31,87.291,3.05342214]
[1773136421041,4.03365256,87.31,87.293,3.05342214]
[1773136421749,6.97150662,87.32,87.295,3.05342214]
[1773136421959,4.03365256,87.31,87.292,58.76542014]
[1773136422752,2.93785406,87.299,87.266,3.05342214]
[1773136423050,4.03365256,87.29,87.268,3.05342214]
[1773136423638,2.93785406,87.293,87.268,3.05342214]
[1773136424735,2.93785406,87.293,87.271,3.05342214]
[1773136426755,4.03365256,87.29,87.272,11.45842882]
[1773136427759,4.03365256,87.29,87.272,14.51185096]
[1773136427935,4.03365256,87.29,87.272,3.05342214]
[1773136428143,2.93785406,87.288,87.269,62.8]
[1773136428341,2.93785406,87.288,87.27,14.51211355]
[1773136429042,2.93785406,87.288,87.27,3.05342214]
[1773136429356,2.93785406,87.288,87.27,14.51211355]
[1773136430156,2.93785406,87.288,87.271,62.8]
[1773136431750,2.93785406,87.288,87.271,65.63259834]
[1773136433165,2.95567573,87.299,87.273,2.83259834]
[1773136434161,11.45501615,87.298,87.275,2.83259834]
[1773136434362,14.41069188,87.298,87.275,2.83259834]
[1773136435763,14.41069188,87.298,87.277,2.83259834]
[1773136435951,11.45501615,87.298,87.277,2.83259834]
[1773136436152,11.45501615,87.298,87.278,65.63259834]
[1773136436552,11.45501615,87.298,87.279,2.83259834]
[1773136437869,14.41069188,87.298,87.279,2.83259834]
[1773136438456,2.95567573,87.297,87.279,2.83259834]
[1773136438662,4.03365256,87.29,87.279,2.83259834]
[1773136439072,2.95567573,87.297,87.28,62.8]
[1773136439374,4.03365256,87.29,87.28,62.8]
[1773136439865,4.03365256,87.3,87.281,2.83259834]
[1773136440454,2.95567573,87.299,87.281,2.83259834]
[1773136440653,2.95567573,87.289,87.28,62.8]
[1773136442173,2.95567573,87.289,87.281,62.8]
[1773136442564,4.03365256,87.29,87.281,62.8]